[Event "ROU-ch Women 2021"]
[Site "Iasi"]
[Date "2021.04.23"]
[Round "7.1"]
[White "Sandu, Mihaela"]
[Black "Peptan, Corina-Isabela"]
[Result "1-0"]
[ECO "D41"]
[WhiteElo "2268"]
[BlackElo "2392"]
[Annotator "NA"]
[PlyCount "81"]
[EventDate "2021.04.19"]
[EventType "swiss"]
[EventCountry "ROU"]
[SourceTitle "playchess.com"]
[Source "ChessBase"]
[SourceQuality "1"]
[TimeControl "5400+30"]

1. e4 {[%emt 0:00:00]} c6 {[%emt 0:00:00]} 2. c4 {[%emt 0:00:10]} d5 {[%emt 0:01:25]} 3. exd5 {[%emt 0:00:07]} cxd5 {[%emt 0:00:02]} 4. cxd5 {[%emt 0:00:04]} Nf6 {[%emt 0:00:17]} 5. Nc3 {[%emt 0:00:10]} Nxd5 {[%emt 0:00:10]} 6. Nf3 {[%emt 0:00:10]} e6 {[%emt 0:01:12]} 7. d4 {[%emt 0:00:04]} Be7 {[%emt 0:00:13]} 8. Bd3 {[%emt 0:06:17]} O-O {[%emt 0:14:47]} 9. O-O {[%emt 0:00:20]} Nxc3 {[%emt 0:01:49]} 10. bxc3 {[%emt 0:00:05]} Nd7 {[%emt 0:00:03]} 11. Qe2 {[%emt 0:03:02]} Qc7 {[%emt 0:02:48]} 12. c4 {[%emt 0:12:32]} Re8 {[%emt 0:02:31]} 13. Qe4 {[%emt 0:02:46]} Nf8 {[%emt 0:04:02]} 14. Bf4 {[%emt 0:02:17]} Bd6 {[%emt 0:01:42]} 15. Bxd6 {[%emt 0:06:20]} Qxd6 {[%emt 0:00:00]} 16. Rab1 {[%emt 0:00:48]} Rb8 {[%emt 0:04:58]} 17. Ne5 {[%emt 0:13:53]} Bd7 {[%emt 0:05:24]} 18. c5 {[%emt 0:09:31]} Qd5 {[%emt 0:07:25]} 19. Nxd7 {[%emt 0:01:28]} Nxd7 {[%emt 0:04:45]} 20. Qxh7+ {[%emt 0:00:16]} Kf8 {[%emt 0:00:01]} 21. Bb5 {[%emt 0:09:11]} g6 {[%emt 0:11:01]} 22. Rb3 {[%emt 0:03:48]} Ke7 {[%emt 0:09:58]} 23. Bxd7 {[%emt 0:04:17]} Qxd7 {[%emt 0:00:59]} 24. Qh4+ {[%emt 0:01:50]} Kf8 {[%emt 0:02:47]} 25. Rf3 {[%emt 0:02:23]} f5 {[%emt 0:01:51]} 26. Qh8+ {[%emt 0:00:21]} Ke7 {[%emt 0:00:05]} 27. Qg7+ {[%emt 0:00:04]} Kd8 {[%emt 0:00:06]} 28. Qxg6 {[%emt 0:00:07]} Qxd4 {[%emt 0:00:11]} 29. Qg3 {[%emt 0:00:28]} Kc8 {[%emt 0:02:33]} 30. Rd3 {[%emt 0:00:13]} Qf6 {[%emt 0:04:24]} 31. Rfd1 {[%emt 0:00:38]} f4 {[%emt 0:00:30]} 32. Qf3 {[%emt 0:01:20]} Re7 {[%emt 0:07:33]} 33. Rd8+ {[%emt 0:04:22]} Kc7 {[%emt 0:00:06]} 34. Qd3 {[%emt 0:00:10]} Rxd8 {[%emt 0:05:48]} 35. Qxd8+ {[%emt 0:00:05]} Kc6 {[%emt 0:00:03]} 36. Qd6+ {[%emt 0:00:06]} Kb5 {[%emt 0:00:03]} 37. c6 {[%emt 0:02:05]} bxc6 {[%emt 0:03:58]} 38. Rb1+ {[%emt 0:00:16]} Kc4 {[%emt 0:00:13]} 39. Rc1+ {[%emt 0:00:10]} Kb5 {[%emt 0:00:23]} 40. Qxc6+ {[%emt 0:00:51]} Kb4 {[%emt 0:00:37]} 41. Qc5+ {[%emt 0:00:14]} 1-0

[Event "ROU-ch Women 2021"]
[Site "Iasi"]
[Date "2021.04.23"]
[Round "7.2"]
[White "Ciolacu, Alessia-Mihaela"]
[Black "Andries, Alexia"]
[Result "1-0"]
[ECO "E73"]
[WhiteElo "2052"]
[BlackElo "1553"]
[Annotator "NA"]
[PlyCount "75"]
[EventDate "2021.04.19"]
[EventType "swiss"]
[EventCountry "ROU"]
[SourceTitle "playchess.com"]
[Source "ChessBase"]
[SourceQuality "1"]
[TimeControl "5400+30"]

1. d4 {[%emt 0:00:00]} Nf6 {[%emt 0:03:05]} 2. c4 {[%emt 0:00:00]} g6 {[%emt 0:00:31]} 3. Nc3 {[%emt 0:00:00]} Bg7 {[%emt 0:00:19]} 4. e4 {[%emt 0:00:00]} d6 {[%emt 0:00:11]} 5. Be2 {[%emt 0:00:04]} O-O {[%emt 0:00:41]} 6. Be3 {[%emt 0:00:12]} e5 {[%emt 0:03:03]} 7. d5 {[%emt 0:00:11]} Na6 {[%emt 0:01:35]} 8. g4 {[%emt 0:00:12]} Nc5 {[%emt 0:01:38]} 9. f3 {[%emt 0:00:12]} Ne8 {[%emt 0:03:07]} 10. h4 {[%emt 0:01:12]} f5 {[%emt 0:01:42]} 11. h5 {[%emt 0:08:43]} fxe4 {[%emt 0:08:36]} 12. fxe4 {[%emt 0:00:49]} gxh5 {[%emt 0:00:37]} 13. gxh5 {[%emt 0:01:06]} Kh8 {[%emt 0:04:00]} 14. Qd2 {[%emt 0:03:28]} Rg8 {[%emt 0:05:32]} 15. Nf3 {[%emt 0:05:47]} Qe7 {[%emt 0:08:45]} 16. O-O-O {[%emt 0:03:19]} Bd7 {[%emt 0:06:56]} 17. Nh4 {[%emt 0:04:23]} Bf8 {[%emt 0:05:02]} 18. Ng6+ {[%emt 0:00:34]} Rxg6 {[%emt 0:00:13]} 19. hxg6 {[%emt 0:00:06]} Nf6 {[%emt 0:00:46]} 20. Bg5 {[%emt 0:00:42]} Bg7 {[%emt 0:02:05]} 21. Rxh7+ {[%emt 0:02:09]} Kg8 {[%emt 0:00:18]} 22. Rdh1 {[%emt 0:03:18]} Be8 {[%emt 0:03:36]} 23. b4 {[%emt 0:05:50]} Ncd7 {[%emt 0:00:27]} 24. Bg4 {[%emt 0:00:46]} Nf8 {[%emt 0:01:31]} 25. Rxg7+ {[%emt 0:18:56]} Qxg7 {[%emt 0:00:21]} 26. Bh6 {[%emt 0:00:24]} Qe7 {[%emt 0:04:02]} 27. g7 {[%emt 0:00:37]} N8h7 {[%emt 0:00:48]} 28. Bf5 {[%emt 0:02:43]} Bd7 {[%emt 0:02:06]} 29. Bg6 {[%emt 0:07:35]} a5 {[%emt 0:03:07]} 30. Qh2 {[%emt 0:11:22]} axb4 {[%emt 0:04:05]} 31. Nd1 {[%emt 0:05:21]} Ra3 {[%emt 0:01:16]} 32. Ne3 {[%emt 0:01:12]} Rc3+ {[%emt 0:01:19]} 33. Kb2 {[%emt 0:00:59]} Bc8 {[%emt 0:03:40]} 34. Bxh7+ {[%emt 0:01:26]} Nxh7 {[%emt 0:00:29]} 35. Bf4 {[%emt 0:00:09]} Nf6 {[%emt 0:02:56]} 36. Qh8+ {[%emt 0:00:12]} Kf7 {[%emt 0:00:05]} 37. Bg5 {[%emt 0:00:11]} Rxe3 {[%emt 0:00:45]} 38. g8=Q+ {[%emt 0:00:30]} 1-0

[Event "ROU-ch Women 2021"]
[Site "Iasi"]
[Date "2021.04.23"]
[Round "7.3"]
[White "Cosman, Andreea-Marioara"]
[Black "Obada, Ema"]
[Result "1/2-1/2"]
[ECO "E11"]
[WhiteElo "2164"]
[BlackElo "1940"]
[Annotator "NA"]
[PlyCount "51"]
[EventDate "2021.04.19"]
[EventType "swiss"]
[EventCountry "ROU"]
[SourceTitle "playchess.com"]
[Source "ChessBase"]
[SourceQuality "1"]
[TimeControl "5400+30"]

1. d4 e6 2. c4 Nf6 3. Nf3 Bb4+ 4. Nbd2 O-O 5. a3 Bxd2+ 6. Qxd2 d6 7. b3 Nbd7 8. Bb2 Qe7 9. Qc2 b6 10. e4 e5 11. d5 Nh5 12. O-O-O a5 13. Ne1 Nc5 14. f3 Bd7 15. g4 Nf4 16. h4 c6 17. dxc6 Bxc6 18. Nd3 Nfxd3+ 19. Bxd3 Rfc8 20. Kb1 Bd7 21. a4 Be6 22. Ba3 Rc6 23. Qc3 Rac8 24. Bxc5 Rxc5 25. Qd2 Rd8 26. Be2 1/2-1/2

[Event "ROU-ch Women 2021"]
[Site "Iasi"]
[Date "2021.04.23"]
[Round "7.5"]
[White "Pirvan, Maria"]
[Black "Lehaci, Miruna-Daria"]
[Result "1/2-1/2"]
[ECO "C08"]
[WhiteElo "1529"]
[BlackElo "2188"]
[Annotator "NA"]
[PlyCount "94"]
[EventDate "2021.04.19"]
[EventType "swiss"]
[EventCountry "ROU"]
[SourceTitle "playchess.com"]
[Source "ChessBase"]
[SourceQuality "1"]
[TimeControl "5400+30"]

1. e4 {[%emt 0:00:00]} e6 {[%emt 0:00:00]} 2. d4 {[%emt 0:00:00]} d5 {[%emt 0:00:00]} 3. Nd2 {[%emt 0:00:00]} c5 {[%emt 0:00:00]} 4. exd5 {[%emt 0:00:00]} exd5 {[%emt 0:00:00]} 5. dxc5 {[%emt 0:01:15]} Bxc5 {[%emt 0:00:00]} 6. Nb3 {[%emt 0:00:16]} Bb6 {[%emt 0:00:06]} 7. Nf3 {[%emt 0:00:21]} Nf6 {[%emt 0:01:08]} 8. Bd3 {[%emt 0:00:18]} O-O {[%emt 0:00:21]} 9. O-O {[%emt 0:00:05]} Bg4 {[%emt 0:01:19]} 10. h3 {[%emt 0:01:06]} Bh5 {[%emt 0:00:11]} 11. Bg5 {[%emt 0:01:56]} Qd6 {[%emt 0:06:49]} 12. Bh4 {[%emt 0:03:25]} Nc6 {[%emt 0:01:39]} 13. Bf5 {[%emt 0:17:31]} Qf4 {[%emt 0:11:45]} 14. g4 {[%emt 0:09:03]} Bg6 {[%emt 0:08:04]} 15. Bxg6 {[%emt 0:04:36]} hxg6 {[%emt 0:05:54]} 16. Kg2 {[%emt 0:05:09]} Qd6 {[%emt 0:01:23]} 17. Nbd4 {[%emt 0:02:26]} Rfe8 {[%emt 0:06:45]} 18. c3 {[%emt 0:07:36]} Ne4 {[%emt 0:05:13]} 19. Qd3 {[%emt 0:01:55]} Nxd4 {[%emt 0:10:24]} 20. Nxd4 {[%emt 0:00:29]} g5 {[%emt 0:03:17]} 21. Nf5 {[%emt 0:06:26]} Qc6 {[%emt 0:01:02]} 22. Bg3 {[%emt 0:01:02]} Nxg3 {[%emt 0:04:43]} 23. Qxg3 {[%emt 0:05:37]} Re4 {[%emt 0:07:46]} 24. Rad1 {[%emt 0:09:35]} Rae8 {[%emt 0:03:56]} 25. Kg1 {[%emt 0:05:59]} Re2 {[%emt 0:07:58]} 26. Qf3 {[%emt 0:08:55]} Rxb2 {[%emt 0:01:07]} 27. Rxd5 {[%emt 0:01:30]} Rxa2 {[%emt 0:05:28]} 28. c4 {[%emt 0:04:42]} Bc5 {[%emt 0:01:55]} 29. Qc3 {[%emt 0:02:04]} Bf8 {[%emt 0:01:59]} 30. Rfd1 {[%emt 0:00:59]} Qc7 {[%emt 0:03:27]} 31. Rd7 {[%emt 0:00:40]} Qf4 {[%emt 0:00:07]} 32. Rf1 {[%emt 0:00:32]} b6 {[%emt 0:00:50]} 33. c5 {[%emt 0:00:27]} Rae2 {[%emt 0:01:04]} 34. c6 {[%emt 0:00:29]} R2e4 {[%emt 0:00:37]} 35. Rxa7 {[%emt 0:00:33]} Rc4 {[%emt 0:00:10]} 36. Qb3 {[%emt 0:00:20]} Rc8 {[%emt 0:00:43]} 37. Qxb6 {[%emt 0:00:41]} R4xc6 {[%emt 0:00:16]} 38. Qb3 {[%emt 0:00:27]} Rf6 {[%emt 0:00:16]} 39. Qb7 {[%emt 0:00:29]} Rb8 {[%emt 0:00:28]} 40. Qd7 {[%emt 0:00:31]} g6 {[%emt 0:00:41]} 41. Ne7+ {[%emt 0:00:30]} Bxe7 {[%emt 0:00:06]} 42. Qxe7 {[%emt 0:00:07]} Kg7 {[%emt 0:00:42]} 43. Qc7 {[%emt 0:00:50]} Qb4 {[%emt 0:00:10]} 44. Qe5 {[%emt 0:00:30]} Qb6 {[%emt 0:00:23]} 45. Rd7 {[%emt 0:00:37]} Rc8 {[%emt 0:00:59]} 46. Qxg5 {[%emt 0:00:29]} Rc2 {[%emt 0:00:37]} 47. Qh4 {[%emt 0:00:26]} Rc4 {[%emt 0:01:01]} 1/2-1/2

[Event "ROU-ch Women 2021"]
[Site "Iasi"]
[Date "2021.04.23"]
[Round "7.6"]
[White "Marcu, Daria-Ana"]
[Black "Maria, Lia-Alexandra"]
[Result "0-1"]
[ECO "C15"]
[WhiteElo "1533"]
[BlackElo "1713"]
[Annotator "NA"]
[PlyCount "70"]
[EventDate "2021.04.19"]
[EventType "swiss"]
[EventCountry "ROU"]
[SourceTitle "playchess.com"]
[Source "ChessBase"]
[SourceQuality "1"]
[TimeControl "5400+30"]

1. e4 {[%emt 0:00:00]} e6 {[%emt 0:00:00]} 2. d4 {[%emt 0:00:00]} d5 {[%emt 0:00:00]} 3. Nc3 {[%emt 0:00:00]} Bb4 {[%emt 0:00:00]} 4. Bd2 {[%emt 0:00:35]} dxe4 {[%emt 0:02:40]} 5. Nxe4 {[%emt 0:00:19]} Qxd4 {[%emt 0:02:43]} 6. Nc3 {[%emt 0:00:20]} Nf6 {[%emt 0:01:37]} 7. Nf3 {[%emt 0:00:20]} Qd8 {[%emt 0:07:08]} 8. Bd3 {[%emt 0:02:18]} O-O {[%emt 0:04:51]} 9. O-O {[%emt 0:01:09]} Nbd7 {[%emt 0:03:16]} 10. a3 {[%emt 0:00:34]} Be7 {[%emt 0:00:32]} 11. Bf4 {[%emt 0:03:12]} a6 {[%emt 0:02:35]} 12. Qe2 {[%emt 0:04:00]} b5 {[%emt 0:03:16]} 13. Rad1 {[%emt 0:03:21]} Bb7 {[%emt 0:05:58]} 14. Ng5 {[%emt 0:00:59]} h6 {[%emt 0:05:45]} 15. Nge4 {[%emt 0:00:49]} e5 {[%emt 0:02:52]} 16. Nxf6+ {[%emt 0:04:31]} Bxf6 {[%emt 0:01:07]} 17. Bxh6 {[%emt 0:27:33]} gxh6 {[%emt 0:03:00]} 18. Bf5 {[%emt 0:00:23]} Bc6 {[%emt 0:03:10]} 19. Qg4+ {[%emt 0:01:55]} Kh8 {[%emt 0:02:20]} 20. Qh3 {[%emt 0:00:29]} Bg7 {[%emt 0:03:18]} 21. Bxd7 {[%emt 0:06:40]} Qf6 {[%emt 0:00:42]} 22. Bxc6 {[%emt 0:08:35]} Qxc6 {[%emt 0:00:09]} 23. Qd7 {[%emt 0:00:36]} Qg6 {[%emt 0:02:30]} 24. Nd5 {[%emt 0:02:19]} Qxc2 {[%emt 0:02:58]} 25. Qxc7 {[%emt 0:01:41]} Qxb2 {[%emt 0:01:57]} 26. Qa5 {[%emt 0:01:10]} Qc2 {[%emt 0:03:21]} 27. Nb4 {[%emt 0:05:48]} Qg6 {[%emt 0:02:38]} 28. Rc1 {[%emt 0:01:14]} Rfd8 {[%emt 0:03:33]} 29. h3 {[%emt 0:04:52]} e4 {[%emt 0:06:14]} 30. Rc6 {[%emt 0:02:10]} Rd6 {[%emt 0:02:35]} 31. Rfc1 {[%emt 0:01:15]} Be5 {[%emt 0:04:57]} 32. R6c5 {[%emt 0:05:16]} Bf4 {[%emt 0:01:04]} 33. Re1 {[%emt 0:02:39]} e3 {[%emt 0:02:35]} 34. fxe3 {[%emt 0:02:22]} Rd2 {[%emt 0:00:54]} 35. g4 {[%emt 0:01:38]} Qe4 {[%emt 0:00:38]} 0-1

[Event "ROU-ch Women 2021"]
[Site "Iasi"]
[Date "2021.04.24"]
[Round "8.1"]
[White "Ciolacu, Alessia-Mihaela"]
[Black "Cosman, Andreea-Marioara"]
[Result "1-0"]
[ECO "A61"]
[WhiteElo "2052"]
[BlackElo "2164"]
[Annotator "NA"]
[PlyCount "71"]
[EventDate "2021.04.19"]
[EventType "swiss"]
[EventCountry "ROU"]
[SourceTitle "playchess.com"]
[Source "ChessBase"]
[SourceQuality "1"]
[TimeControl "5400+30"]

1. d4 {[%emt 0:00:00]} Nf6 {[%emt 0:00:24]} 2. c4 {[%emt 0:00:00]} c5 {[%emt 0:00:05]} 3. d5 {[%emt 0:00:00]} e6 {[%emt 0:00:04]} 4. Nc3 {[%emt 0:00:00]} exd5 {[%emt 0:00:15]} 5. cxd5 {[%emt 0:00:00]} d6 {[%emt 0:00:04]} 6. Nf3 {[%emt 0:00:03]} g6 {[%emt 0:00:07]} 7. Bf4 {[%emt 0:00:08]} Bg7 {[%emt 0:00:06]} 8. Qa4+ {[%emt 0:00:09]} Bd7 {[%emt 0:00:05]} 9. Qb3 {[%emt 0:00:11]} b5 {[%emt 0:00:06]} 10. Bxd6 {[%emt 0:00:17]} Qb6 {[%emt 0:00:06]} 11. Be5 {[%emt 0:00:13]} O-O {[%emt 0:00:21]} 12. e3 {[%emt 0:00:43]} c4 {[%emt 0:00:06]} 13. Qd1 {[%emt 0:00:39]} b4 {[%emt 0:00:06]} 14. Ne2 {[%emt 0:00:30]} Rc8 {[%emt 0:06:39]} 15. Nf4 {[%emt 0:00:59]} c3 {[%emt 0:05:17]} 16. Bd3 {[%emt 0:01:19]} Na6 {[%emt 0:06:33]} 17. O-O {[%emt 0:04:35]} Nc5 {[%emt 0:01:06]} 18. Bc2 {[%emt 0:04:49]} Nce4 {[%emt 0:12:14]} 19. Qb1 {[%emt 0:29:41]} Nd6 {[%emt 0:14:41]} 20. bxc3 {[%emt 0:04:15]} Nc4 {[%emt 0:01:31]} 21. Bd4 {[%emt 0:03:02]} Qc7 {[%emt 0:09:52]} 22. Qxb4 {[%emt 0:14:43]} Bg4 {[%emt 0:09:42]} 23. Bd3 {[%emt 0:10:55]} Bxf3 {[%emt 0:06:30]} 24. gxf3 {[%emt 0:02:26]} Nd2 {[%emt 0:01:19]} 25. Rfd1 {[%emt 0:09:33]} Nxf3+ {[%emt 0:00:17]} 26. Kg2 {[%emt 0:00:33]} Qd7 {[%emt 0:04:38]} 27. Bxf6 {[%emt 0:06:39]} Qg4+ {[%emt 0:00:13]} 28. Kh1 {[%emt 0:00:07]} Bxf6 {[%emt 0:00:21]} 29. Be2 {[%emt 0:00:44]} Bxc3 {[%emt 0:12:33]} 30. Qe4 {[%emt 0:00:16]} Bxa1 {[%emt 0:02:23]} 31. Bxf3 {[%emt 0:00:23]} Qh4 {[%emt 0:00:18]} 32. Rxa1 {[%emt 0:00:22]} Qxf2 {[%emt 0:00:57]} 33. d6 {[%emt 0:01:28]} Rab8 {[%emt 0:03:13]} 34. Nd5 {[%emt 0:01:16]} Rc2 {[%emt 0:02:57]} 35. Nf6+ {[%emt 0:00:18]} Kg7 {[%emt 0:01:01]} 36. Ng4 {[%emt 0:01:23]} 1-0

[Event "ROU-ch Women 2021"]
[Site "Iasi"]
[Date "2021.04.24"]
[Round "8.2"]
[White "Sandu, Mihaela"]
[Black "Anghel, Maria"]
[Result "1-0"]
[ECO "B12"]
[WhiteElo "2268"]
[BlackElo "1918"]
[Annotator "NA"]
[PlyCount "61"]
[EventDate "2021.04.19"]
[EventType "swiss"]
[EventCountry "ROU"]
[SourceTitle "playchess.com"]
[Source "ChessBase"]
[SourceQuality "1"]
[TimeControl "5400+30"]

1. e4 {[%emt 0:00:00]} c6 {[%emt 0:00:00]} 2. d4 {[%emt 0:00:00]} d5 {[%emt 0:00:00]} 3. e5 {[%emt 0:00:00]} Bf5 {[%emt 0:00:04]} 4. Nf3 {[%emt 0:00:02]} e6 {[%emt 0:00:11]} 5. Be2 {[%emt 0:00:03]} Nd7 {[%emt 0:00:37]} 6. O-O {[%emt 0:00:24]} Ne7 {[%emt 0:00:23]} 7. Nbd2 {[%emt 0:02:32]} c5 {[%emt 0:05:05]} 8. c4 {[%emt 0:00:43]} Qc7 {[%emt 0:14:37]} 9. dxc5 {[%emt 0:04:04]} Nc6 {[%emt 0:19:48]} 10. cxd5 {[%emt 0:12:19]} exd5 {[%emt 0:00:30]} 11. Nb3 {[%emt 0:00:29]} Be6 {[%emt 0:08:35]} 12. Nfd4 {[%emt 0:08:33]} Nxc5 {[%emt 0:10:12]} 13. Nxe6 {[%emt 0:13:24]} fxe6 {[%emt 0:03:35]} 14. Bh5+ {[%emt 0:08:48]} g6 {[%emt 0:01:10]} 15. Bg4 {[%emt 0:00:04]} Qf7 {[%emt 0:09:19]} 16. Nd4 {[%emt 0:01:11]} h5 {[%emt 0:11:19]} 17. Bh3 {[%emt 0:02:51]} Be7 {[%emt 0:05:31]} 18. Nxc6 {[%emt 0:04:08]} bxc6 {[%emt 0:00:03]} 19. Be3 {[%emt 0:00:50]} Nd7 {[%emt 0:02:02]} 20. Qa4 {[%emt 0:03:33]} Nb8 {[%emt 0:02:16]} 21. Qb3 {[%emt 0:01:47]} Nd7 {[%emt 0:03:22]} 22. Qb7 {[%emt 0:00:25]} Rd8 {[%emt 0:01:39]} 23. Qxc6 {[%emt 0:00:06]} Kf8 {[%emt 0:00:39]} 24. f4 {[%emt 0:03:40]} Kg7 {[%emt 0:00:21]} 25. Bxa7 {[%emt 0:02:20]} Nb8 {[%emt 0:00:39]} 26. Bxb8 {[%emt 0:00:57]} Rxb8 {[%emt 0:00:05]} 27. Bxe6 {[%emt 0:00:23]} Qe8 {[%emt 0:00:49]} 28. Qxd5 {[%emt 0:02:15]} Rxb2 {[%emt 0:00:30]} 29. Rab1 {[%emt 0:02:05]} Rxb1 {[%emt 0:00:33]} 30. Rxb1 {[%emt 0:00:03]} Qd8 {[%emt 0:00:34]} 31. Rb7 {[%emt 0:02:57]} 1-0

[Event "ROU-ch Women 2021"]
[Site "Iasi"]
[Date "2021.04.24"]
[Round "8.3"]
[White "Peptan, Corina-Isabela"]
[Black "Pirvan, Maria"]
[Result "1-0"]
[ECO "A43"]
[WhiteElo "2392"]
[BlackElo "1529"]
[Annotator "NA"]
[PlyCount "27"]
[EventDate "2021.04.19"]
[EventType "swiss"]
[EventCountry "ROU"]
[SourceTitle "playchess.com"]
[Source "ChessBase"]
[SourceQuality "1"]
[TimeControl "5400+30"]

1. d4 {[%emt 0:00:03]} Nf6 {[%emt 0:00:00]} 2. Nf3 {[%emt 0:00:16]} g6 {[%emt 0:00:00]} 3. g3 {[%emt 0:00:52]} c5 {[%emt 0:00:53]} 4. d5 {[%emt 0:01:03]} d6 {[%emt 0:00:26]} 5. Bg2 {[%emt 0:00:08]} Bg7 {[%emt 0:00:05]} 6. Nc3 {[%emt 0:00:11]} O-O {[%emt 0:00:20]} 7. O-O {[%emt 0:00:06]} e6 {[%emt 0:00:44]} 8. dxe6 {[%emt 0:04:52]} fxe6 {[%emt 0:00:47]} 9. e4 {[%emt 0:08:44]} d5 {[%emt 0:06:44]} 10. Bg5 {[%emt 0:02:56]} h6 {[%emt 0:21:09]} 11. Bxf6 {[%emt 0:00:16]} Bxf6 {[%emt 0:00:10]} 12. exd5 {[%emt 0:00:14]} Bxc3 {[%emt 0:04:08]} 13. bxc3 {[%emt 0:00:05]} exd5 {[%emt 0:04:11]} 14. Ne5 {[%emt 0:01:43]} 1-0

[Event "ROU-ch Women 2021"]
[Site "Iasi"]
[Date "2021.04.24"]
[Round "8.4"]
[White "Obada, Ema"]
[Black "Marcu, Daria-Ana"]
[Result "1-0"]
[ECO "B13"]
[WhiteElo "1940"]
[BlackElo "1533"]
[Annotator "NA"]
[PlyCount "109"]
[EventDate "2021.04.19"]
[EventType "swiss"]
[EventCountry "ROU"]
[SourceTitle "playchess.com"]
[Source "ChessBase"]
[SourceQuality "1"]
[TimeControl "5400+30"]

1. e4 {[%emt 0:00:00]} c6 {[%emt 0:00:00]} 2. d4 {[%emt 0:00:00]} d5 {[%emt 0:00:00]} 3. exd5 {[%emt 0:00:00]} cxd5 {[%emt 0:00:00]} 4. Bd3 {[%emt 0:00:00]} Nc6 {[%emt 0:00:04]} 5. c3 {[%emt 0:00:00]} Nf6 {[%emt 0:00:08]} 6. h3 {[%emt 0:00:00]} a6 {[%emt 0:00:37]} 7. Nf3 {[%emt 0:00:07]} e6 {[%emt 0:00:32]} 8. O-O {[%emt 0:00:20]} Bd6 {[%emt 0:00:08]} 9. Re1 {[%emt 0:00:22]} O-O {[%emt 0:00:20]} 10. Bg5 {[%emt 0:01:12]} Be7 {[%emt 0:00:47]} 11. Nbd2 {[%emt 0:01:14]} Bd7 {[%emt 0:01:08]} 12. Qe2 {[%emt 0:04:27]} h6 {[%emt 0:01:01]} 13. Bf4 {[%emt 0:01:02]} Na7 {[%emt 0:05:07]} 14. Qe3 {[%emt 0:00:54]} Re8 {[%emt 0:03:43]} 15. Ne5 {[%emt 0:03:46]} Nc6 {[%emt 0:13:59]} 16. Bc2 {[%emt 0:04:23]} Rc8 {[%emt 0:24:11]} 17. Qd3 {[%emt 0:05:08]} Nxe5 {[%emt 0:11:11]} 18. dxe5 {[%emt 0:00:48]} Bb5 {[%emt 0:00:26]} 19. Qf3 {[%emt 0:00:59]} Nd7 {[%emt 0:05:01]} 20. Nb3 {[%emt 0:11:22]} Bg5 {[%emt 0:02:47]} 21. Bg3 {[%emt 0:03:20]} Nf8 {[%emt 0:08:40]} 22. Nd4 {[%emt 0:01:11]} Qb6 {[%emt 0:03:17]} 23. h4 {[%emt 0:03:32]} Be7 {[%emt 0:00:44]} 24. Qg4 {[%emt 0:11:36]} Bc5 {[%emt 0:09:53]} 25. Nb3 {[%emt 0:03:14]} d4 {[%emt 0:02:14]} 26. cxd4 {[%emt 0:02:44]} Bb4 {[%emt 0:00:10]} 27. Rec1 {[%emt 0:00:51]} Ba4 {[%emt 0:02:12]} 28. Bf4 {[%emt 0:00:57]} Bxb3 {[%emt 0:00:24]} 29. Bxh6 {[%emt 0:01:35]} g6 {[%emt 0:00:21]} 30. axb3 {[%emt 0:00:32]} Red8 {[%emt 0:01:18]} 31. Be3 {[%emt 0:00:22]} Qb5 {[%emt 0:02:43]} 32. Be4 {[%emt 0:01:58]} Rxc1+ {[%emt 0:01:18]} 33. Rxc1 {[%emt 0:00:02]} b6 {[%emt 0:00:38]} 34. Qg5 {[%emt 0:01:32]} Rb8 {[%emt 0:01:12]} 35. Rc7 {[%emt 0:00:29]} Qe8 {[%emt 0:00:31]} 36. Qh6 {[%emt 0:02:45]} Rc8 {[%emt 0:00:36]} 37. Bg5 {[%emt 0:01:32]} Nh7 {[%emt 0:00:27]} 38. Bxg6 {[%emt 0:00:58]} Nxg5 {[%emt 0:00:21]} 39. Rb7 {[%emt 0:06:19]} Bf8 {[%emt 0:00:44]} 40. Qxg5 {[%emt 0:00:13]} fxg6 {[%emt 0:00:08]} 41. h5 {[%emt 0:00:21]} Rd8 {[%emt 0:00:57]} 42. hxg6 {[%emt 0:01:02]} Rd7 {[%emt 0:00:17]} 43. Rxb6 {[%emt 0:00:09]} Rg7 {[%emt 0:00:27]} 44. Rxa6 {[%emt 0:00:49]} Rxg6 {[%emt 0:00:09]} 45. Qf4 {[%emt 0:00:18]} Bh6 {[%emt 0:00:20]} 46. Qe4 {[%emt 0:00:17]} Kh7 {[%emt 0:00:46]} 47. Ra7+ {[%emt 0:00:22]} Bg7 {[%emt 0:00:18]} 48. b4 {[%emt 0:00:30]} Qc8 {[%emt 0:00:26]} 49. Ra3 {[%emt 0:01:00]} Qc1+ {[%emt 0:00:13]} 50. Kh2 {[%emt 0:00:02]} Qc7 {[%emt 0:01:34]} 51. Rg3 {[%emt 0:00:23]} Qf7 {[%emt 0:00:09]} 52. b5 {[%emt 0:01:19]} Bh6 {[%emt 0:00:40]} 53. Qxg6+ {[%emt 0:00:13]} Qxg6 {[%emt 0:00:06]} 54. Rxg6 {[%emt 0:00:03]} Kxg6 {[%emt 0:00:11]} 55. b6 {[%emt 0:00:03]} 1-0

[Event "ROU-ch Women 2021"]
[Site "Iasi"]
[Date "2021.04.24"]
[Round "8.5"]
[White "Maria, Lia-Alexandra"]
[Black "Pancu, Aureliana-Eugenia"]
[Result "1-0"]
[ECO "C11"]
[WhiteElo "1713"]
[BlackElo "1878"]
[Annotator "NA"]
[PlyCount "87"]
[EventDate "2021.04.19"]
[EventType "swiss"]
[EventCountry "ROU"]
[SourceTitle "playchess.com"]
[Source "ChessBase"]
[SourceQuality "1"]
[TimeControl "5400+30"]

1. e4 {[%emt 0:00:00]} e6 {[%emt 0:00:00]} 2. d4 {[%emt 0:00:00]} d5 {[%emt 0:00:00]} 3. Nc3 {[%emt 0:00:00]} Nf6 {[%emt 0:00:00]} 4. e5 {[%emt 0:00:10]} Nfd7 {[%emt 0:00:00]} 5. f4 {[%emt 0:00:26]} c5 {[%emt 0:00:04]} 6. Nf3 {[%emt 0:00:12]} Nc6 {[%emt 0:00:22]} 7. Be3 {[%emt 0:00:21]} cxd4 {[%emt 0:00:46]} 8. Nxd4 {[%emt 0:02:10]} Bc5 {[%emt 0:00:40]} 9. a3 {[%emt 0:02:24]} Bxd4 {[%emt 0:00:44]} 10. Bxd4 {[%emt 0:00:15]} Nxd4 {[%emt 0:00:20]} 11. Qxd4 {[%emt 0:00:17]} Qb6 {[%emt 0:00:07]} 12. Nb5 {[%emt 0:12:35]} Qxd4 {[%emt 0:00:25]} 13. Nxd4 {[%emt 0:00:00]} a6 {[%emt 0:00:00]} 14. b4 {[%emt 0:03:16]} Ke7 {[%emt 0:00:44]} 15. c4 {[%emt 0:06:20]} dxc4 {[%emt 0:01:14]} 16. Bxc4 {[%emt 0:00:26]} Nb6 {[%emt 0:00:09]} 17. Bb3 {[%emt 0:00:38]} Rd8 {[%emt 0:00:22]} 18. Rd1 {[%emt 0:00:35]} Bd7 {[%emt 0:00:26]} 19. O-O {[%emt 0:01:50]} Rac8 {[%emt 0:06:50]} 20. Rf3 {[%emt 0:07:56]} Ba4 {[%emt 0:03:13]} 21. Bxa4 {[%emt 0:12:01]} Nxa4 {[%emt 0:00:16]} 22. f5 {[%emt 0:01:53]} Rd5 {[%emt 0:07:42]} 23. fxe6 {[%emt 0:02:10]} fxe6 {[%emt 0:03:30]} 24. Nf5+ {[%emt 0:05:24]} Kd7 {[%emt 0:00:43]} 25. Rxd5+ {[%emt 0:01:00]} exd5 {[%emt 0:00:11]} 26. Nxg7 {[%emt 0:00:27]} Rc1+ {[%emt 0:00:26]} 27. Kf2 {[%emt 0:03:12]} Rc2+ {[%emt 0:02:52]} 28. Ke1 {[%emt 0:02:50]} Rxg2 {[%emt 0:00:50]} 29. e6+ {[%emt 0:05:08]} Kd6 {[%emt 0:00:35]} 30. Rf7 {[%emt 0:00:34]} Nc3 {[%emt 0:01:12]} 31. e7 {[%emt 0:01:31]} Re2+ {[%emt 0:05:39]} 32. Kf1 {[%emt 0:00:13]} Rxe7 {[%emt 0:00:23]} 33. Nf5+ {[%emt 0:00:12]} Ke6 {[%emt 0:00:13]} 34. Rxe7+ {[%emt 0:00:48]} Kxf5 {[%emt 0:00:09]} 35. Rxh7 {[%emt 0:02:03]} b5 {[%emt 0:02:11]} 36. Rg7 {[%emt 0:04:02]} d4 {[%emt 0:06:25]} 37. Rd7 {[%emt 0:02:15]} Ke4 {[%emt 0:00:14]} 38. h4 {[%emt 0:01:21]} Nd5 {[%emt 0:06:12]} 39. h5 {[%emt 0:07:16]} Ne3+ {[%emt 0:04:38]} 40. Ke2 {[%emt 0:01:15]} Nf5 {[%emt 0:00:15]} 41. Kd2 {[%emt 0:01:49]} Ke5 {[%emt 0:02:12]} 42. Kd3 {[%emt 0:00:17]} Kf6 {[%emt 0:04:57]} 43. Rxd4 {[%emt 0:02:03]} Kg7 {[%emt 0:02:31]} 44. Rd5 {[%emt 0:00:28]} 1-0